[Event "57th Biel Festival ATO 2024"]
[Site "Biel"]
[Date "2024.07.18"]
[Round "3.26"]
[White "Voet, Dirk"]
[Black "Panda, Gyorgy"]
[Result "1-0"]
[ECO "A00"]
[WhiteElo "1869"]
[BlackElo "1713"]
[Annotator "NA RC"]
[PlyCount "20"]
[EventDate "2024.07.03"]
[EventType "swiss"]
[EventCountry "SUI"]
[SourceTitle "playchess.com"]
[Source "ChessBase"]
[SourceQuality "1"]
[TimeControl "40/5400+30:1800+30"]

1. g3 {[%emt 0:09:27]} d5 {[%emt 0:00:32]} 2. Bg2 {[%emt 0:00:05]} Nf6 {[%emt 0:00:18]} 3. b3 {[%emt 0:00:17]} c6 {[%emt 0:00:48]} 4. Bb2 {[%emt 0:00:06]} Nbd7 {[%emt 0:00:52]} 5. d3 {[%emt 0:01:01]} e6 {[%emt 0:00:20]} 6. Nd2 {[%emt 0:00:21]} Bd6 {[%emt 0:00:37]} 7. f4 {[%emt 0:03:24]} O-O {[%emt 0:00:34]} 8. e3 {[%emt 0:00:19]} Re8 {[%emt 0:00:25]} 9. d4 {[%emt 0:12:36]} a5 {[%emt 0:11:33]} 10. h3 {[%emt 0:07:31]} Qb6 {[%emt 0:17:46]} 1-0

[Event "57th Biel Festival ATO 2024"]
[Site "Biel"]
[Date "2024.07.18"]
[Round "3.27"]
[White "Luedi, Paul"]
[Black "Titov, Dmitrii"]
[Result "0-1"]
[ECO "E24"]
[WhiteElo "1715"]
[BlackElo "1899"]
[Annotator "NA RC"]
[PlyCount "66"]
[EventDate "2024.07.03"]
[EventType "swiss"]
[EventCountry "SUI"]
[SourceTitle "playchess.com"]
[Source "ChessBase"]
[SourceQuality "1"]
[TimeControl "40/5400+30:1800+30"]

1. d4 {[%emt 0:00:08]} Nf6 {[%emt 0:00:07]} 2. c4 {[%emt 0:00:16]} e6 {[%emt 0:00:12]} 3. Nc3 {[%emt 0:00:26]} Bb4 {[%emt 0:00:11]} 4. f3 {[%emt 0:01:00]} c5 {[%emt 0:02:25]} 5. a3 {[%emt 0:05:21]} Bxc3+ {[%emt 0:00:24]} 6. bxc3 {[%emt 0:00:14]} O-O {[%emt 0:10:08]} 7. e4 {[%emt 0:02:28]} d6 {[%emt 0:03:42]} 8. Bd3 {[%emt 0:03:54]} h6 {[%emt 0:02:10]} 9. Ne2 {[%emt 0:02:16]} Qc7 {[%emt 0:01:41]} 10. O-O {[%emt 0:09:32]} Nc6 {[%emt 0:00:41]} 11. d5 {[%emt 0:05:23]} Na5 {[%emt 0:04:22]} 12. Ng3 {[%emt 0:03:02]} b6 {[%emt 0:10:55]} 13. Ra2 {[%emt 0:05:01]} Ba6 {[%emt 0:02:40]} 14. f4 {[%emt 0:05:10]} Bxc4 {[%emt 0:02:03]} 15. Bxc4 {[%emt 0:02:13]} Nxc4 {[%emt 0:00:05]} 16. Qe2 {[%emt 0:03:07]} exd5 {[%emt 0:01:15]} 17. exd5 {[%emt 0:05:51]} b5 {[%emt 0:01:05]} 18. f5 {[%emt 0:04:44]} Rfe8 {[%emt 0:03:52]} 19. Qf3 {[%emt 0:01:30]} Ne5 {[%emt 0:03:03]} 20. Qd1 {[%emt 0:02:13]} c4 {[%emt 0:00:20]} 21. Nh5 {[%emt 0:04:18]} Nxh5 {[%emt 0:07:18]} 22. Qxh5 {[%emt 0:00:52]} f6 {[%emt 0:00:53]} 23. Bf4 {[%emt 0:12:03]} Nd3 {[%emt 0:05:46]} 24. Bxh6 {[%emt 0:06:13]} gxh6 {[%emt 0:03:34]} 25. Qxh6 {[%emt 0:02:23]} Qg7 {[%emt 0:02:09]} 26. Qh5 {[%emt 0:02:22]} Qg5 {[%emt 0:12:00]} 27. Qxg5+ {[%emt 0:02:57]} fxg5 {[%emt 0:00:03]} 28. f6 {[%emt 0:00:35]} Kf7 {[%emt 0:00:22]} 29. a4 {[%emt 0:00:48]} b4 {[%emt 0:03:46]} 30. cxb4 {[%emt 0:00:29]} Nxb4 {[%emt 0:00:03]} 31. Rb2 {[%emt 0:02:07]} a5 {[%emt 0:00:19]} 32. g3 {[%emt 0:02:10]} c3 {[%emt 0:00:40]} 33. Rb3 {[%emt 0:01:40]} Rac8 {[%emt 0:00:30]} 0-1

[Event "57th Biel Festival ATO 2024"]
[Site "Biel"]
[Date "2024.07.18"]
[Round "3.28"]
[White "Jordan, Theodor"]
[Black "Sushrutha, Reddy"]
[Result "0-1"]
[ECO "B78"]
[WhiteElo "1894"]
[BlackElo "1649"]
[Annotator "NA RC"]
[PlyCount "96"]
[EventDate "2024.07.03"]
[EventType "swiss"]
[EventCountry "SUI"]
[SourceTitle "playchess.com"]
[Source "ChessBase"]
[SourceQuality "1"]
[TimeControl "40/5400+30:1800+30"]

1. e4 {[%emt 0:00:06]} c5 {[%emt 0:00:24]} 2. Nf3 {[%emt 0:00:06]} d6 {[%emt 0:00:08]} 3. d4 {[%emt 0:00:04]} cxd4 {[%emt 0:00:07]} 4. Nxd4 {[%emt 0:00:04]} Nf6 {[%emt 0:00:10]} 5. Nc3 {[%emt 0:00:04]} g6 {[%emt 0:00:10]} 6. Be3 {[%emt 0:00:05]} Bg7 {[%emt 0:00:37]} 7. f3 {[%emt 0:00:07]} O-O {[%emt 0:00:09]} 8. Bc4 {[%emt 0:00:22]} Nc6 {[%emt 0:00:11]} 9. Qd2 {[%emt 0:00:08]} Bd7 {[%emt 0:00:07]} 10. O-O-O {[%emt 0:00:25]} Rc8 {[%emt 0:00:03]} 11. Bb3 {[%emt 0:00:05]} Ne5 {[%emt 0:00:12]} 12. h4 {[%emt 0:00:09]} h5 {[%emt 0:00:02]} 13. Bh6 {[%emt 0:00:09]} Nc4 {[%emt 0:01:00]} 14. Bxc4 {[%emt 0:00:06]} Rxc4 {[%emt 0:00:14]} 15. Bxg7 {[%emt 0:00:04]} Kxg7 {[%emt 0:00:10]} 16. g4 {[%emt 0:00:04]} hxg4 {[%emt 0:00:35]} 17. h5 {[%emt 0:00:04]} Rh8 {[%emt 0:00:30]} 18. hxg6 {[%emt 0:00:24]} fxg6 {[%emt 0:00:54]} 19. fxg4 {[%emt 0:00:30]} Nxg4 {[%emt 0:06:31]} 20. Rdg1 {[%emt 0:36:05]} Qf8 {[%emt 0:08:25]} 21. Rxh8 {[%emt 0:10:31]} Qxh8 {[%emt 0:02:43]} 22. Qg5 {[%emt 0:02:10]} Qh6 {[%emt 0:00:32]} 23. Qxh6+ {[%emt 0:01:11]} Kxh6 {[%emt 0:01:21]} 24. Nb3 {[%emt 0:00:29]} Nf6 {[%emt 0:01:20]} 25. Nd2 {[%emt 0:06:48]} Rc8 {[%emt 0:00:36]} 26. Nf3 {[%emt 0:00:36]} Bg4 {[%emt 0:06:59]} 27. e5 {[%emt 0:01:29]} Bxf3 {[%emt 0:00:45]} 28. exf6 {[%emt 0:00:04]} e5 {[%emt 0:02:31]} 29. Nb5 {[%emt 0:05:31]} Rf8 {[%emt 0:01:20]} 30. Nxd6 {[%emt 0:00:49]} Rxf6 {[%emt 0:00:07]} 31. Nc4 {[%emt 0:00:23]} e4 {[%emt 0:00:46]} 32. Ne3 {[%emt 0:03:12]} g5 {[%emt 0:00:52]} 33. Kd2 {[%emt 0:01:52]} Rd6+ {[%emt 0:05:01]} 34. Ke1 {[%emt 0:00:13]} Kh5 {[%emt 0:00:37]} 35. a4 {[%emt 0:01:18]} g4 {[%emt 0:00:26]} 36. b3 {[%emt 0:03:48]} Kg5 {[%emt 0:00:23]} 37. Nc4 {[%emt 0:02:14]} Rd1+ {[%emt 0:00:27]} 38. Kf2 {[%emt 0:00:01]} Rxg1 {[%emt 0:00:33]} 39. Kxg1 {[%emt 0:00:01]} Kf4 {[%emt 0:00:27]} 40. a5 {[%emt 0:02:41]} Bd1 {[%emt 0:00:52]} 41. a6 {[%emt 0:31:00]} bxa6 {[%emt 0:30:07]} 42. b4 {[%emt 0:00:54]} Bxc2 {[%emt 0:00:12]} 43. Kf2 {[%emt 0:00:29]} Bd3 {[%emt 0:00:09]} 44. Nb2 {[%emt 0:00:19]} g3+ {[%emt 0:00:37]} 45. Kg2 {[%emt 0:00:28]} Be2 {[%emt 0:00:26]} 46. Na4 {[%emt 0:00:18]} Bf3+ {[%emt 0:00:24]} 47. Kh3 {[%emt 0:00:28]} e3 {[%emt 0:00:40]} 48. Nb2 {[%emt 0:01:08]} Be4 {[%emt 0:00:24]} 0-1

[Event "57th Biel Festival ATO 2024"]
[Site "Biel"]
[Date "2024.07.18"]
[Round "3.29"]
[White "Bachmann Daniel"]
[Black "Galopin, Clement"]
[Result "0-1"]
[ECO "C28"]
[WhiteElo "1713"]
[BlackElo "1816"]
[Annotator "NA"]
[PlyCount "121"]
[EventDate "2024.07.03"]
[EventType "swiss"]
[EventCountry "SUI"]
[SourceTitle "playchess.com"]
[Source "ChessBase"]
[SourceQuality "1"]
[TimeControl "40/5400+30:1800+30"]

1. e4 {[%emt 0:00:04]} e5 {[%emt 0:13:17]} 2. Nc3 {[%emt 0:02:18]} Nc6 {[%emt 0:01:06]} 3. Bc4 {[%emt 0:02:35]} Nf6 {[%emt 0:00:30]} 4. d3 {[%emt 0:00:14]} Be7 {[%emt 0:08:09]} 5. f4 {[%emt 0:00:11]} d6 {[%emt 0:05:12]} 6. Nf3 {[%emt 0:00:51]} Bg4 {[%emt 0:01:57]} 7. h3 {[%emt 0:00:25]} Bxf3 {[%emt 0:00:30]} 8. Qxf3 {[%emt 0:00:30]} Nd4 {[%emt 0:00:30]} 9. Qd1 {[%emt 0:00:28]} c6 {[%emt 0:00:31]} 10. a4 {[%emt 0:00:41]} a5 {[%emt 0:09:03]} 11. Ne2 {[%emt 0:00:57]} Nxe2 {[%emt 0:00:56]} 12. Qxe2 {[%emt 0:00:03]} O-O {[%emt 0:02:49]} 13. O-O {[%emt 0:00:04]} Qc7 {[%emt 0:03:55]} 14. fxe5 {[%emt 0:04:37]} dxe5 {[%emt 0:00:06]} 15. Bg5 {[%emt 0:00:06]} b5 {[%emt 0:02:14]} 16. axb5 {[%emt 0:02:23]} cxb5 {[%emt 0:00:40]} 17. Ba2 {[%emt 0:01:17]} Rac8 {[%emt 0:02:24]} 18. Bxf6 {[%emt 0:00:43]} Bxf6 {[%emt 0:00:42]} 19. Qg4 {[%emt 0:00:01]} Qb6+ {[%emt 0:01:56]} 20. Kh1 {[%emt 0:01:18]} Rxc2 {[%emt 0:00:27]} 21. Rab1 {[%emt 0:05:03]} Be7 {[%emt 0:16:38]} 22. Qd7 {[%emt 0:06:57]} Qg6 {[%emt 0:02:50]} 23. Qg4 {[%emt 0:27:24]} Qxg4 {[%emt 0:00:19]} 24. hxg4 {[%emt 0:00:10]} Bg5 {[%emt 0:02:04]} 25. Rf5 {[%emt 0:00:41]} Bf4 {[%emt 0:00:30]} 26. d4 {[%emt 0:01:38]} g6 {[%emt 0:02:11]} 27. Rf6 {[%emt 0:01:06]} Kg7 {[%emt 0:00:56]} 28. Rd6 {[%emt 0:00:35]} Rfc8 {[%emt 0:05:01]} 29. dxe5 {[%emt 0:00:06]} Rc1+ {[%emt 0:00:46]} 30. Rd1 {[%emt 0:00:03]} Rxd1+ {[%emt 0:01:45]} 31. Rxd1 {[%emt 0:00:02]} Bxe5 {[%emt 0:00:18]} 32. Rb1 {[%emt 0:00:59]} Rc2 {[%emt 0:02:14]} 33. Bd5 {[%emt 0:00:28]} Rxb2 {[%emt 0:00:15]} 34. Ra1 {[%emt 0:00:55]} a4 {[%emt 0:00:59]} 35. Kg1 {[%emt 0:01:56]} Rxg2+ {[%emt 0:01:49]} 36. Kxg2 {[%emt 0:00:02]} Bxa1 {[%emt 0:00:31]} 37. Bc6 {[%emt 0:00:16]} a3 {[%emt 0:00:00]} 38. Bxb5 {[%emt 0:00:16]} Kh6 {[%emt 0:01:59]} 39. Bc4 {[%emt 0:02:08]} f6 {[%emt 0:00:14]} 40. Kf3 {[%emt 0:00:04]} Kg5 {[%emt 0:00:12]} 41. Bg8 {[%emt 0:30:15]} Be5 {[%emt 0:30:59]} 42. Be6 {[%emt 0:01:36]} h5 {[%emt 0:07:22]} 43. gxh5 {[%emt 0:00:40]} gxh5 {[%emt 0:01:51]} 44. Kg2 {[%emt 0:01:48]} Kf4 {[%emt 0:00:00]} 45. Bd5 {[%emt 0:00:00]} Bc3 {[%emt 0:00:00]} 46. Kh3 {[%emt 0:00:00]} Be1 {[%emt 0:00:00]} 47. Kg2 {[%emt 0:00:00]} Ke5 {[%emt 0:00:00]} 48. Kf1 {[%emt 0:00:00]} Bc3 {[%emt 0:00:00]} 49. Ba2 {[%emt 0:00:00]} Kxe4 {[%emt 0:00:00]} 50. Kg2 {[%emt 0:00:00]} f5 {[%emt 0:00:00]} 51. Bb1+ {[%emt 0:00:00]} Kf4 {[%emt 0:00:00]} 52. Kh3 {[%emt 0:00:00]} Be1 {[%emt 0:00:00]} 53. Ba2 {[%emt 0:00:00]} Ke3 {[%emt 0:00:00]} 54. Kg2 {[%emt 0:00:00]} f4 {[%emt 0:00:00]} 55. Kf1 {[%emt 0:00:00]} Bf2 {[%emt 0:00:00]} 56. Bf7 {[%emt 0:00:00]} f3 {[%emt 0:00:00]} 57. Bd5 {[%emt 0:00:00]} h4 {[%emt 0:00:00]} 58. Be6 {[%emt 0:00:00]} h3 {[%emt 0:00:00]} 59. Bd5 {[%emt 0:00:00]} h2 {[%emt 0:00:00]} 60. Bxf3 {[%emt 0:00:00]} a2 {[%emt 0:00:00]} 61. Kg2 {[%emt 0:00:00]} 0-1

[Event "57th Biel Festival ATO 2024"]
[Site "Biel"]
[Date "2024.07.18"]
[Round "3.30"]
[White "Kim, Yejun"]
[Black "Gotti, Nicola"]
[Result "1-0"]
[ECO "C88"]
[WhiteElo "1642"]
[BlackElo "1804"]
[Annotator "NA RC"]
[PlyCount "67"]
[EventDate "2024.07.03"]
[EventType "swiss"]
[EventCountry "SUI"]
[SourceTitle "playchess.com"]
[Source "ChessBase"]
[SourceQuality "1"]
[TimeControl "40/5400+30:1800+30"]

1. e4 {[%emt 0:00:05]} e5 {[%emt 0:00:05]} 2. Nf3 {[%emt 0:00:05]} Nc6 {[%emt 0:00:07]} 3. Bb5 {[%emt 0:00:06]} a6 {[%emt 0:00:06]} 4. Ba4 {[%emt 0:00:04]} Nf6 {[%emt 0:00:08]} 5. O-O {[%emt 0:00:04]} Be7 {[%emt 0:00:09]} 6. Re1 {[%emt 0:00:06]} b5 {[%emt 0:00:07]} 7. Bb3 {[%emt 0:00:06]} O-O {[%emt 0:00:08]} 8. a4 {[%emt 0:00:12]} Bb7 {[%emt 0:01:34]} 9. d3 {[%emt 0:00:27]} d5 {[%emt 0:02:23]} 10. exd5 {[%emt 0:05:32]} Nxd5 {[%emt 0:00:08]} 11. Nxe5 {[%emt 0:01:10]} Nxe5 {[%emt 0:00:07]} 12. Rxe5 {[%emt 0:00:03]} Bd6 {[%emt 0:00:37]} 13. Rxd5 {[%emt 0:01:17]} Bxd5 {[%emt 0:00:28]} 14. Bxd5 {[%emt 0:00:05]} Bxh2+ {[%emt 0:00:12]} 15. Kxh2 {[%emt 0:00:08]} Qxd5 {[%emt 0:00:12]} 16. Nc3 {[%emt 0:00:22]} Qd6+ {[%emt 0:00:21]} 17. Kg1 {[%emt 0:00:09]} b4 {[%emt 0:00:58]} 18. Ne4 {[%emt 0:00:14]} Qg6 {[%emt 0:00:34]} 19. Qf3 {[%emt 0:01:10]} Qc6 {[%emt 0:01:32]} 20. c3 {[%emt 0:02:02]} f5 {[%emt 0:02:18]} 21. Ng5 {[%emt 0:00:10]} Qxf3 {[%emt 0:01:06]} 22. Nxf3 {[%emt 0:00:04]} bxc3 {[%emt 0:01:03]} 23. bxc3 {[%emt 0:00:07]} h6 {[%emt 0:01:28]} 24. Ba3 {[%emt 0:00:54]} Rfd8 {[%emt 0:01:24]} 25. d4 {[%emt 0:01:16]} Rab8 {[%emt 0:04:00]} 26. Bb4 {[%emt 0:00:30]} g5 {[%emt 0:00:30]} 27. Ne5 {[%emt 0:00:09]} Rb6 {[%emt 0:00:47]} 28. a5 {[%emt 0:06:33]} Re6 {[%emt 0:03:20]} 29. Rb1 {[%emt 0:00:15]} Rb8 {[%emt 0:00:52]} 30. Nd7 {[%emt 0:00:10]} Rd8 {[%emt 0:02:58]} 31. Nc5 {[%emt 0:00:07]} Rc6 {[%emt 0:00:53]} 32. Re1 {[%emt 0:00:05]} Kf7 {[%emt 0:01:34]} 33. Nd3 {[%emt 0:00:05]} Re6 {[%emt 0:03:28]} 34. Rxe6 {[%emt 0:00:08]} 1-0

[Event "57th Biel Festival ATO 2024"]
[Site "Biel"]
[Date "2024.07.18"]
[Round "3.31"]
[White "Trubini, Timon"]
[Black "Paholok, Igor"]
[Result "0-1"]
[ECO "C02"]
[WhiteElo "1714"]
[BlackElo "1801"]
[Annotator "NA RC"]
[PlyCount "28"]
[EventDate "2024.07.03"]
[EventType "swiss"]
[EventCountry "SUI"]
[SourceTitle "playchess.com"]
[Source "ChessBase"]
[SourceQuality "1"]
[TimeControl "40/5400+30:1800+30"]

1. e4 {[%emt 0:03:19]} e6 {[%emt 0:12:02]} 2. d4 {[%emt 0:00:04]} d5 {[%emt 0:00:23]} 3. e5 {[%emt 0:00:04]} b6 {[%emt 0:01:14]} 4. Nf3 {[%emt 0:01:18]} Bb7 {[%emt 0:00:45]} 5. c3 {[%emt 0:03:06]} Nc6 {[%emt 0:00:25]} 6. Bd3 {[%emt 0:02:45]} f6 {[%emt 0:01:22]} 7. Bf4 {[%emt 0:02:06]} g5 {[%emt 0:07:23]} 8. Nxg5 {[%emt 0:26:43]} fxg5 {[%emt 0:00:28]} 9. Qh5+ {[%emt 0:00:05]} Kd7 {[%emt 0:00:30]} 10. Bxg5 {[%emt 0:00:09]} Qe8 {[%emt 0:01:14]} 11. Qh4 {[%emt 0:02:05]} Be7 {[%emt 0:01:59]} 12. f4 {[%emt 0:01:00]} h6 {[%emt 0:01:09]} 13. Rf1 {[%emt 0:03:05]} Bxg5 {[%emt 0:15:08]} 14. fxg5 {[%emt 0:00:10]} Qe7 {[%emt 0:00:29]} 0-1

[Event "57th Biel Festival ATO 2024"]
[Site "Biel"]
[Date "2024.07.18"]
[Round "3.33"]
[White "Juchler, Celine"]
[Black "Hofer, Friedrich"]
[Result "0-1"]
[ECO "C57"]
[WhiteElo "1664"]
[BlackElo "1798"]
[Annotator "NA RC"]
[PlyCount "106"]
[EventDate "2024.07.03"]
[EventType "swiss"]
[EventCountry "SUI"]
[SourceTitle "playchess.com"]
[Source "ChessBase"]
[SourceQuality "1"]
[TimeControl "40/5400+30:1800+30"]

1. e4 {[%emt 0:00:08]} e5 {[%emt 0:00:10]} 2. Nf3 {[%emt 0:00:06]} Nc6 {[%emt 0:00:09]} 3. Bc4 {[%emt 0:00:04]} Nf6 {[%emt 0:00:47]} 4. Ng5 {[%emt 0:00:47]} d5 {[%emt 0:00:14]} 5. exd5 {[%emt 0:00:31]} b5 {[%emt 0:00:16]} 6. Bxb5 {[%emt 0:01:46]} Qxd5 {[%emt 0:00:11]} 7. Bxc6+ {[%emt 0:00:44]} Qxc6 {[%emt 0:00:11]} 8. O-O {[%emt 0:04:17]} Bb7 {[%emt 0:01:43]} 9. Nf3 {[%emt 0:01:04]} Bd6 {[%emt 0:00:30]} 10. d3 {[%emt 0:01:01]} O-O {[%emt 0:00:31]} 11. Nc3 {[%emt 0:00:58]} Rad8 {[%emt 0:03:05]} 12. Bg5 {[%emt 0:00:43]} Bc5 {[%emt 0:00:37]} 13. Qe2 {[%emt 0:06:54]} h6 {[%emt 0:00:19]} 14. Bxf6 {[%emt 0:00:44]} Qxf6 {[%emt 0:02:18]} 15. Qxe5 {[%emt 0:00:52]} Qc6 {[%emt 0:02:15]} 16. Rfe1 {[%emt 0:02:30]} Rfe8 {[%emt 0:00:30]} 17. Qh5 {[%emt 0:03:29]} Bd4 {[%emt 0:06:13]} 18. Rxe8+ {[%emt 0:05:17]} Rxe8 {[%emt 0:00:11]} 19. Qb5 {[%emt 0:00:46]} Bf6 {[%emt 0:06:17]} 20. Qxc6 {[%emt 0:02:24]} Bxc6 {[%emt 0:00:07]} 21. Kf1 {[%emt 0:02:53]} Rb8 {[%emt 0:00:33]} 22. Ne4 {[%emt 0:01:55]} Bxe4 {[%emt 0:02:40]} 23. dxe4 {[%emt 0:00:11]} Rxb2 {[%emt 0:00:23]} 24. e5 {[%emt 0:01:25]} Be7 {[%emt 0:00:59]} 25. Nd4 {[%emt 0:02:45]} Bc5 {[%emt 0:01:58]} 26. c3 {[%emt 0:00:53]} Bxd4 {[%emt 0:02:47]} 27. cxd4 {[%emt 0:00:23]} Rd2 {[%emt 0:00:06]} 28. Rc1 {[%emt 0:00:46]} Rxd4 {[%emt 0:00:15]} 29. Rxc7 {[%emt 0:00:16]} Ra4 {[%emt 0:00:06]} 30. Rc2 {[%emt 0:00:27]} Kf8 {[%emt 0:00:52]} 31. g3 {[%emt 0:00:25]} Ke7 {[%emt 0:00:16]} 32. f4 {[%emt 0:00:47]} Ke6 {[%emt 0:00:39]} 33. Kf2 {[%emt 0:01:27]} g5 {[%emt 0:00:42]} 34. Rc6+ {[%emt 0:00:35]} Kd5 {[%emt 0:01:43]} 35. Rxh6 {[%emt 0:02:50]} gxf4 {[%emt 0:02:13]} 36. Kf3 {[%emt 0:04:00]} fxg3 {[%emt 0:06:20]} 37. hxg3 {[%emt 0:00:30]} Rxa2 {[%emt 0:00:30]} 38. Kf4 {[%emt 0:00:30]} Rf2+ {[%emt 0:00:30]} 39. Ke3 {[%emt 0:00:17]} Rf5 {[%emt 0:05:25]} 40. Ra6 {[%emt 0:01:11]} Rxe5+ {[%emt 0:00:27]} 41. Kf4 {[%emt 0:31:32]} Re7 {[%emt 0:30:12]} 42. Ra5+ {[%emt 0:02:08]} Kc4 {[%emt 0:01:24]} 43. Kf5 {[%emt 0:00:42]} Kb4 {[%emt 0:00:12]} 44. Ra1 {[%emt 0:00:09]} a5 {[%emt 0:00:15]} 45. g4 {[%emt 0:00:45]} a4 {[%emt 0:00:11]} 46. g5 {[%emt 0:00:04]} a3 {[%emt 0:01:37]} 47. Rb1+ {[%emt 0:01:30]} Kc3 {[%emt 0:00:08]} 48. Rg1 {[%emt 0:01:14]} Re2 {[%emt 0:00:50]} 49. Rg3+ {[%emt 0:00:57]} Kb2 {[%emt 0:00:09]} 50. Rg4 {[%emt 0:00:14]} Rf2+ {[%emt 0:00:22]} 51. Ke5 {[%emt 0:00:17]} a2 {[%emt 0:00:10]} 52. Rb4+ {[%emt 0:00:08]} Ka3 {[%emt 0:00:17]} 53. Rb6 {[%emt 0:03:40]} a1=Q+ {[%emt 0:00:15]} 0-1

[Event "57th Biel Festival ATO 2024"]
[Site "Biel"]
[Date "2024.07.18"]
[Round "3.34"]
[White "Wipf, Armin"]
[Black "Richard, Jean-Paul"]
[Result "0-1"]
[ECO "B31"]
[WhiteElo "1643"]
[BlackElo "1796"]
[Annotator "NA RC"]
[PlyCount "54"]
[EventDate "2024.07.03"]
[EventType "swiss"]
[EventCountry "SUI"]
[SourceTitle "playchess.com"]
[Source "ChessBase"]
[SourceQuality "1"]
[TimeControl "40/5400+30:1800+30"]

1. e4 {[%emt 0:00:07]} c5 {[%emt 0:00:04]} 2. Nf3 {[%emt 0:00:17]} Nc6 {[%emt 0:00:06]} 3. Bb5 {[%emt 0:01:18]} g6 {[%emt 0:00:06]} 4. Bxc6 {[%emt 0:00:30]} dxc6 {[%emt 0:00:03]} 5. O-O {[%emt 0:00:34]} Bg7 {[%emt 0:00:15]} 6. c3 {[%emt 0:01:47]} Nf6 {[%emt 0:02:36]} 7. d3 {[%emt 0:00:13]} Nd7 {[%emt 0:02:44]} 8. Bf4 {[%emt 0:01:51]} e5 {[%emt 0:00:39]} 9. Bg5 {[%emt 0:02:13]} f6 {[%emt 0:05:29]} 10. Be3 {[%emt 0:01:07]} O-O {[%emt 0:01:43]} 11. Nbd2 {[%emt 0:03:02]} b6 {[%emt 0:13:15]} 12. Nb3 {[%emt 0:07:19]} Ba6 {[%emt 0:02:43]} 13. Re1 {[%emt 0:00:39]} c4 {[%emt 0:01:10]} 14. dxc4 {[%emt 0:03:23]} Bxc4 {[%emt 0:00:18]} 15. Nbd2 {[%emt 0:01:33]} Be6 {[%emt 0:02:38]} 16. Nb3 {[%emt 0:03:00]} Qe7 {[%emt 0:05:32]} 17. h3 {[%emt 0:01:53]} Rad8 {[%emt 0:07:56]} 18. Qc2 {[%emt 0:00:12]} h6 {[%emt 0:00:50]} 19. Rad1 {[%emt 0:02:33]} f5 {[%emt 0:05:04]} 20. exf5 {[%emt 0:06:00]} gxf5 {[%emt 0:02:29]} 21. Bc1 {[%emt 0:01:58]} c5 {[%emt 0:05:49]} 22. c4 {[%emt 0:12:45]} e4 {[%emt 0:12:02]} 23. Nh2 {[%emt 0:02:13]} Ne5 {[%emt 0:04:12]} 24. Nf1 {[%emt 0:08:46]} Bxc4 {[%emt 0:05:05]} 25. Ne3 {[%emt 0:01:02]} Bd3 {[%emt 0:00:29]} 26. Qd2 {[%emt 0:02:12]} Qg5 {[%emt 0:06:48]} 27. Nc2 {[%emt 0:05:07]} Nf3+ {[%emt 0:00:33]} 0-1

[Event "57th Biel Festival ATO 2024"]
[Site "Biel"]
[Date "2024.07.18"]
[Round "3.35"]
[White "Christoffersen, Odd"]
[Black "Lachausse, Bruno"]
[Result "1/2-1/2"]
[ECO "B40"]
[WhiteElo "1676"]
[BlackElo "1787"]
[Annotator "NA"]
[PlyCount "76"]
[EventDate "2024.07.03"]
[EventType "swiss"]
[EventCountry "SUI"]
[SourceTitle "playchess.com"]
[Source "ChessBase"]
[SourceQuality "1"]
[TimeControl "40/5400+30:1800+30"]

1. e4 {[%emt 0:00:02]} c5 {[%emt 0:04:24]} 2. Nf3 {[%emt 0:00:12]} e6 {[%emt 0:00:27]} 3. g3 {[%emt 0:00:42]} d5 {[%emt 0:01:00]} 4. exd5 {[%emt 0:00:58]} exd5 {[%emt 0:00:17]} 5. d4 {[%emt 0:00:42]} Nf6 {[%emt 0:01:17]} 6. Bg2 {[%emt 0:00:32]} Be7 {[%emt 0:00:29]} 7. O-O {[%emt 0:01:17]} O-O {[%emt 0:00:25]} 8. dxc5 {[%emt 0:00:40]} Nc6 {[%emt 0:02:32]} 9. Nbd2 {[%emt 0:01:12]} Bxc5 {[%emt 0:01:39]} 10. Nb3 {[%emt 0:00:21]} Bb6 {[%emt 0:03:26]} 11. Bg5 {[%emt 0:04:57]} h6 {[%emt 0:04:11]} 12. Bxf6 {[%emt 0:04:43]} Qxf6 {[%emt 0:02:09]} 13. c3 {[%emt 0:00:26]} Be6 {[%emt 0:05:17]} 14. Qd2 {[%emt 0:03:54]} Rad8 {[%emt 0:00:39]} 15. Nfd4 {[%emt 0:03:18]} Bc8 {[%emt 0:02:27]} 16. f4 {[%emt 0:05:07]} Rfe8 {[%emt 0:03:31]} 17. Kh1 {[%emt 0:01:19]} a6 {[%emt 0:04:45]} 18. Rae1 {[%emt 0:01:02]} Qd6 {[%emt 0:06:04]} 19. Qd3 {[%emt 0:02:57]} Re7 {[%emt 0:17:17]} 20. Rxe7 {[%emt 0:09:45]} Qxe7 {[%emt 0:02:02]} 21. Nf3 {[%emt 0:02:32]} Qf6 {[%emt 0:01:44]} 22. Nbd4 {[%emt 0:05:06]} g6 {[%emt 0:07:34]} 23. Re1 {[%emt 0:01:01]} Qd6 {[%emt 0:03:26]} 24. h3 {[%emt 0:01:33]} Kg7 {[%emt 0:00:58]} 25. Qd1 {[%emt 0:06:46]} Ne7 {[%emt 0:02:15]} 26. Qe2 {[%emt 0:02:56]} Nf5 {[%emt 0:03:12]} 27. Nxf5+ {[%emt 0:03:47]} Bxf5 {[%emt 0:01:04]} 28. Nd4 {[%emt 0:00:47]} Bc8 {[%emt 0:03:38]} 29. Qd3 {[%emt 0:01:10]} Bc7 {[%emt 0:03:08]} 30. Re3 {[%emt 0:03:53]} b5 {[%emt 0:03:49]} 31. a3 {[%emt 0:00:41]} Rd7 {[%emt 0:00:35]} 32. Nf3 {[%emt 0:00:58]} Bb6 {[%emt 0:03:21]} 33. Nd4 {[%emt 0:01:22]} Bb7 {[%emt 0:00:42]} 34. Qe2 {[%emt 0:00:35]} Bc7 {[%emt 0:02:21]} 35. h4 {[%emt 0:00:29]} Bc8 {[%emt 0:00:58]} 36. h5 {[%emt 0:02:06]} Qf6 {[%emt 0:03:42]} 37. Bh3 {[%emt 0:09:37]} Rd8 {[%emt 0:00:40]} 38. Bxc8 {[%emt 0:00:37]} Rxc8 {[%emt 0:00:05]} 1/2-1/2